bitfinex-derivatives/quotes_ETHF0:USTF0_20260120
["timestamp","ask_amount","ask_price","bid_price","bid_amount"]
[1768889781470,0.83192854,3165.8,3164.1,1.40638316]
[1768889781766,0.15807,3165.9,3164.1,1.40638316]
[1768889781959,0.83191,3165.8,3164.1,1.40638316]
[1768889782159,0.15807,3165.9,3164.1,1.40638316]
[1768889782363,0.83186119,3165.8,3164.1,1.40638316]
[1768889782554,1.58859864,3165.9,3164.1,1.40638316]
[1768889782758,1.43052864,3165.7,3164.2,7.214]
[1768889782958,1.43052864,3165.7,3164.3,4.051]
[1768889783166,1.93279535,3165.5,3164.1,4.051]
[1768889783367,1.93279535,3165.5,3163.9,4.051]
[1768889784067,1.93279535,3164.6,3163.7,0.00384533]
[1768889784261,1.93667789,3164.6,3163.7,0.00384533]
[1768889786175,1.93279535,3164.4,3162.8,3.162]
[1768889786470,2.09095535,3164.1,3162.5,2.11909249]
[1768889786660,1.93279535,3163.9,3162.5,4.053]
[1768889786968,2.76465051,3163.8,3162.5,4.053]
[1768889787265,0.83185516,3163.7,3162.5,4.05603397]
[1768889787454,0.83078687,3163.6,3162.5,0.00303397]
[1768889787660,1.93279535,3163.4,3161.5,2.11909249]
[1768889787984,1.93279535,3163.2,3161.6,2.607]
[1768889788363,0.15819,3163.6,3161.7,2.11909249]
[1768889788667,0.83679413,3163.5,3161.7,2.12218041]
[1768889788860,1.93279535,3163.7,3161.7,2.12218041]
[1768889789059,0.83689716,3163.6,3161.7,2.12218041]
[1768889789360,1.93279535,3163.4,3161.8,44.851]
[1768889789559,1.93279535,3163.4,3161.9,4.05]
[1768889789764,0.83627181,3163.3,3161.9,4.05]
[1768889790063,1.93279535,3163.4,3161.7,0.00308792]
[1768889790262,1.93279535,3163.2,3161.7,0.00308792]
[1768889790461,1.93279535,3163.0,3161.7,0.00308792]
[1768889790671,1.93279535,3162.8,3160.9,2.11909249]
[1768889790864,1.93279535,3162.6,3160.9,2.11909249]
[1768889791059,0.83546019,3162.5,3160.9,2.11909249]
[1768889791371,2.09103535,3162.6,3160.6,4.052]
[1768889791569,1.93279535,3162.4,3160.4,6.17209249]
[1768889791875,1.93279535,3162.4,3160.5,40.8]
[1768889792269,2.09104535,3162.4,3160.4,6.1757323]
[1768889792473,2.09104535,3162.4,3160.4,2.1227323]
[1768889792780,2.09104535,3162.4,3160.5,1.419]
[1768889793570,1.93279535,3162.4,3160.5,4.054]
[1768889794362,1.93279535,3162.2,3160.4,0.00363981]
[1768889794668,1.93279535,3162.0,3160.4,0.00363981]
[1768889794866,1.93279535,3161.8,3159.3,1.205]
[1768889795073,1.93279535,3161.4,3159.3,1.205]
[1768889795276,1.93279535,3161.4,3159.0,2.11909249]
[1768889795778,1.93279535,3161.4,3159.2,2.11909249]
[1768889796469,1.93279535,3161.4,3159.3,3.0]
[1768889797572,1.93279535,3161.2,3159.3,3.0]
[1768889798265,1.93279535,3160.4,3157.6,2.27757249]
[1768889798473,2.33776843,3161.1,3157.6,2.27757249]
[1768889798474,1.93279535,3160.2,3157.6,2.11909249]
[1768889798664,1.93279535,3159.8,3157.4,4.053]
[1768889798863,2.09117535,3159.8,3157.4,4.053]
[1768889799077,1.93279535,3159.8,3157.5,2.11909249]
[1768889799279,1.93576381,3159.8,3157.6,2.11909249]
[1768889800969,1.93576381,3159.8,3157.5,0.00305577]
[1768889801570,1.93279535,3159.5,3157.5,0.00305577]
[1768889802380,1.93279535,3159.2,3157.5,0.00305577]
[1768889803270,2.09120535,3159.2,3157.5,0.00305577]
[1768889803578,2.27443847,3158.8,3155.8,5.67482995]
[1768889803772,2.27443847,3157.7,3155.5,2.50882995]
[1768889803973,2.27443847,3157.5,3155.0,2.50882995]
[1768889804274,2.27443847,3157.0,3154.5,2.50882995]
[1768889804470,2.27443847,3156.8,3154.5,2.51246692]
[1768889804972,0.00399268,3157.0,3154.5,2.51246692]
[1768889805179,0.00399268,3157.0,3155.3,2.50882995]
[1768889805377,2.27443847,3158.3,3155.5,2.50882995]
[1768889805686,2.27443847,3158.3,3155.7,2.50882995]
[1768889805877,2.27443847,3158.8,3156.5,2.50882995]
[1768889806076,1.62247537,3160.7,3157.3,2.50882995]
[1768889806077,2.27443847,3159.8,3157.3,2.50882995]
[1768889806275,2.27443847,3159.8,3157.5,2.50882995]
[1768889806481,0.0026661,3159.8,3157.8,2.50882995]
[1768889806771,0.0026661,3159.8,3158.0,2.50882995]
[1768889806984,0.0026661,3159.8,3158.0,9.72182995]
[1768889807181,0.0026661,3159.8,3158.0,2.50882995]
[1768889807485,0.0026661,3159.8,3158.1,3.167]
[1768889807690,0.0026661,3159.8,3158.2,2.50882995]
[1768889808679,2.27443847,3161.0,3158.4,2.50882995]
[1768889808879,2.27443847,3161.9,3158.6,2.50882995]
[1768889809088,2.27443847,3160.9,3158.6,2.50882995]
[1768889809280,2.27443847,3160.9,3158.4,3.167]
[1768889809787,2.27811044,3160.9,3158.4,3.167]
[1768889809989,2.43276847,3160.7,3158.5,2.50882995]
[1768889810198,2.27443847,3160.5,3158.5,2.50882995]
[1768889810488,2.27443847,3160.5,3157.7,0.15848]
[1768889810708,0.00367197,3160.9,3157.2,3.167]
[1768889810709,2.27443847,3159.4,3157.2,3.167]
[1768889810888,2.27443847,3159.4,3157.3,2.51132038]
[1768889811185,0.15839,3159.5,3157.3,2.51132038]
[1768889811586,2.27443847,3159.4,3157.3,2.51132038]
[1768889811791,2.27443847,3159.4,3157.4,7.209]
[1768889813090,2.27443847,3159.4,3157.3,2.51132038]
[1768889813302,2.27443847,3159.4,3157.5,4.047]
[1768889813819,2.27443847,3159.4,3157.6,2.65146052]
[1768889814000,2.27443847,3159.4,3157.7,4.048]
[1768889814299,0.15839,3159.5,3157.7,4.048]
[1768889814598,2.46969158,3159.9,3157.8,2.65146052]
[1768889815701,2.46969158,3159.9,3157.7,4.048]
[1768889815896,2.46969158,3159.9,3157.3,0.00249043]
[1768889815897,2.46969158,3158.8,3157.3,0.00249043]
[1768889816098,2.62812158,3158.8,3157.3,0.00249043]
[1768889819702,2.46969158,3159.4,3157.3,2.65395095]
[1768889820599,0.15839,3159.5,3157.3,2.65395095]
[1768889821199,0.15839,3159.5,3157.5,2.65146052]
[1768889821400,0.15839,3159.5,3157.6,3.168]
[1768889821602,2.46969158,3159.0,3157.3,0.00249043]
[1768889821904,0.15842,3158.9,3157.3,0.00249043]
[1768889822109,2.62813158,3158.6,3157.3,0.00249043]
[1768889822442,2.63080949,3158.6,3157.3,0.00249043]
[1768889824208,0.86173599,3158.5,3157.3,0.00249043]
[1768889824408,0.04341426,3157.9,3157.3,0.00249043]
[1768889824703,0.00267791,3158.6,3157.3,0.00249043]
[1768889825011,0.00267791,3158.6,3157.3,2.65395095]
[1768889825307,0.00267791,3158.6,3157.3,4.03949043]
[1768889825901,0.00267791,3158.6,3157.3,0.00249043]
[1768889826107,0.86205794,3158.5,3157.3,0.00249043]
[1768889826406,2.47236949,3158.6,3157.3,0.00249043]
[1768889826613,0.15848,3157.8,3156.2,2.65146052]
[1768889826806,0.1585,3157.3,3155.6,2.65146052]
[1768889827010,2.46969158,3157.6,3155.5,3.168]
[1768889827011,0.15851,3157.1,3155.5,3.168]
[1768889827209,0.8620741,3157.0,3155.2,7.09]
[1768889827516,2.46969158,3157.6,3155.4,2.65146052]
[1768889827517,3.57216674,3157.6,3155.4,2.65146052]
[1768889827703,3.3317301,3157.5,3155.5,4.034]
[1768889828015,3.3317301,3157.4,3155.4,2.65146052]
[1768889828210,0.86203852,3157.3,3155.6,4.035]
[1768889828516,1.10247516,3157.8,3155.7,2.65146052]
[1768889828714,0.86221706,3157.7,3155.7,2.65146052]
[1768889828912,0.86221706,3157.6,3155.8,9.85746052]
[1768889829215,2.46969158,3157.9,3155.9,2.65146052]
[1768889829414,0.86201457,3157.8,3156.0,7.205]
[1768889829611,0.86201457,3157.7,3156.1,2.65146052]
[1768889829916,0.15847,3158.0,3156.1,2.65146052]
[1768889830121,0.86197627,3157.9,3156.1,2.65146052]
[1768889830318,0.15847,3158.0,3156.1,2.65146052]
[1768889830505,0.86197596,3157.9,3156.2,7.204]
[1768889830711,0.86197596,3157.8,3156.2,9.85546052]
[1768889830919,0.15847,3158.0,3156.2,9.85546052]
[1768889831127,0.86206901,3157.9,3156.2,9.85546052]
[1768889831310,0.15847,3158.0,3156.3,2.65146052]
[1768889831615,1.10247516,3158.4,3156.3,2.65146052]
[1768889831809,0.00267791,3158.6,3156.5,2.81000052]
[1768889832014,0.00267791,3158.6,3157.1,2.65146052]
[1768889832412,1.26085516,3159.7,3157.3,2.65146052]
[1768889832614,0.8623815,3159.6,3157.5,2.65146052]
[1768889832819,0.8623815,3159.5,3157.5,2.65146052]
[1768889833021,0.8623815,3159.4,3157.6,40.8]
[1768889833219,0.8623815,3159.3,3157.7,7.201]
[1768889833415,0.00399813,3159.3,3157.8,2.65146052]
[1768889834217,0.00399813,3159.3,3157.8,2.80993052]
[1768889834416,0.00399813,3159.3,3157.9,4.034]
[1768889834719,0.00399813,3159.3,3158.0,2.65146052]
[1768889835016,0.00399813,3159.3,3157.7,0.00360415]
[1768889835220,3.33437561,3159.2,3157.7,0.00360415]
[1768889835421,3.33437561,3159.1,3157.7,0.00360415]
[1768889835607,0.86468403,3159.0,3157.7,0.00360415]
[1768889838021,0.86468403,3158.9,3157.7,0.00360415]
[1768889838220,0.16239813,3159.3,3157.7,2.65506467]
[1768889838419,0.8659244,3159.2,3157.7,2.65506467]
[1768889838620,2.46969158,3159.0,3157.7,0.00360415]
[1768889838922,2.62812158,3158.8,3157.7,0.00360415]
[1768889839113,0.8659244,3158.7,3157.7,0.00360415]
[1768889839313,3.33561598,3158.6,3157.7,0.00360415]
[1768889839509,0.8659244,3158.5,3157.0,2.65146052]
[1768889839709,0.8659244,3158.5,3157.1,4.035]
[1768889840120,0.8659244,3158.5,3157.2,4.036]
[1768889840518,0.8659244,3158.5,3157.2,4.03981071]
[1768889840914,3.49405598,3158.5,3157.2,0.00381071]
[1768889841111,0.8659244,3158.4,3157.2,0.00381071]
[1768889841318,2.46969158,3158.3,3157.2,0.00381071]
[1768889841526,0.8659244,3158.2,3157.2,0.00381071]
[1768889841721,2.46969158,3157.7,3155.9,3.989]
[1768889842026,3.49410598,3157.6,3155.7,2.65146052]
[1768889842225,0.8659244,3157.5,3155.8,4.037]
[1768889842411,3.49410598,3157.5,3155.9,4.037]
[1768889842612,0.8659244,3157.4,3155.9,4.04106275]
[1768889842819,0.8659244,3157.3,3155.9,4.04106275]
[1768889843021,2.62818158,3157.5,3155.9,4.04106275]
[1768889843022,0.8659244,3157.2,3155.9,4.04106275]
[1768889843324,0.15849,3157.5,3155.9,4.04106275]
[1768889843624,0.86561931,3157.4,3155.9,4.04106275]
[1768889843818,0.86561931,3157.3,3156.0,4.039]
[1768889844021,0.15849,3157.5,3156.0,4.039]
[1768889844218,0.86563401,3157.4,3156.0,4.039]
[1768889844429,0.86563401,3157.3,3155.9,0.00406275]
[1768889844621,0.15849,3157.5,3156.0,4.04]
[1768889844822,0.86545959,3157.4,3156.0,4.04]
[1768889845021,0.86545959,3157.3,3156.0,4.04]
[1768889845227,0.15849,3157.5,3156.0,7.00457011]
[1768889845529,0.86549501,3157.4,3156.0,7.00457011]
[1768889845716,0.15849,3157.5,3156.0,7.00457011]
[1768889845918,0.86549479,3157.4,3156.0,7.00457011]
[1768889846218,0.15849,3157.5,3156.0,7.00457011]
[1768889846420,0.86531044,3157.4,3156.0,7.00457011]
[1768889846728,0.15849,3157.5,3156.1,7.209]
[1768889846934,0.8653887,3157.4,3156.1,7.209]
[1768889847130,0.15849,3157.5,3156.0,2.96457011]
[1768889847429,0.15849,3157.5,3156.1,4.04]
[1768889847619,3.09886999,3157.3,3155.9,2.8921553]
[1768889847843,2.52334166,3156.9,3155.2,4.039]
[1768889848020,0.86518377,3156.8,3155.2,4.039]
[1768889848220,0.86518377,3156.7,3155.2,4.039]
[1768889848423,2.52334166,3156.9,3155.2,4.039]
[1768889848727,0.85832841,3156.8,3155.2,4.04289064]
[1768889848928,0.16216461,3156.9,3155.3,2.96457011]
[1768889849123,0.00364461,3156.9,3155.5,2.96457011]
[1768889849329,0.00364461,3156.9,3155.6,4.04]
[1768889849528,0.00364461,3156.9,3155.5,2.96457011]
[1768889849824,0.00364461,3156.9,3155.6,4.041]
[1768889850026,0.00364461,3156.9,3155.2,2.96846075]
[1768889850230,2.42440537,3156.9,3155.2,0.00389064]
[1768889850416,0.15855,3156.4,3155.2,0.00389064]
[1768889850624,2.46813108,3156.2,3154.2,2.96457011]
[1768889850829,3.32186147,3156.1,3154.3,4.041]
[1768889851028,2.46424044,3156.1,3154.3,4.041]
[1768889851326,2.46424044,3156.1,3154.4,4.04]
[1768889851528,1.10247516,3156.5,3154.5,2.96457011]
[1768889851729,0.85707927,3156.4,3154.5,2.96457011]
[1768889852028,0.00364461,3156.9,3154.7,2.96457011]
[1768889852215,2.51788505,3156.9,3154.7,2.96457011]
[1768889852418,2.51424044,3156.7,3154.4,0.00256891]
[1768889852620,2.56051278,3156.5,3154.5,4.45157011]
[1768889852831,0.85690743,3156.4,3154.5,45.25157011]
[1768889853025,3.57593679,3156.3,3154.6,7.212]
[1768889853226,2.71907278,3156.2,3154.4,0.00256891]
[1768889853414,0.15857,3156.0,3154.4,0.00256891]
[1768889853615,0.15857,3155.9,3154.5,2.499]
[1768889853820,0.15858,3155.8,3154.5,4.043]
[1768889854030,0.04346104,3155.2,3154.5,4.043]
[1768889854228,1.10247516,3156.7,3154.5,7.00757011]
[1768889854422,0.15854,3156.5,3154.5,7.00757011]
[1768889854624,0.85587137,3156.4,3154.5,2.96457011]
[1768889854823,2.65260095,3156.7,3154.6,4.042]
[1768889855126,0.85587735,3156.6,3154.6,4.042]
[1768889855325,0.15856,3156.1,3154.7,2.96457011]
[1768889855730,0.16216461,3156.9,3154.7,2.96457011]
[1768889855916,0.15853,3156.8,3154.9,2.96457011]
[1768889856323,0.15853,3156.8,3155.0,7.211]
[1768889856617,0.15853,3156.8,3155.1,2.96457011]
[1768889856821,0.15853,3156.8,3155.2,7.21]
[1768889857221,0.15853,3156.8,3155.1,2.96457011]
[1768889857422,0.15853,3156.8,3155.2,7.209]
[1768889857726,0.15853,3156.7,3155.3,4.039]
[1768889857924,2.73805059,3156.7,3154.4,0.00256891]
[1768889858122,0.15857,3155.9,3154.4,0.00256891]
[1768889858424,0.15858,3155.8,3154.5,4.039]
[1768889859129,0.15858,3155.7,3154.4,0.00256891]
[1768889859324,0.15859,3155.6,3154.5,4.039]
[1768889859529,0.15859,3155.6,3154.4,0.00256891]
[1768889859919,0.1586,3155.3,3154.4,0.00256891]
[1768889860130,2.98829772,3155.6,3154.4,0.00256891]
[1768889860327,2.98829772,3155.6,3152.8,2.96457011]
[1768889860328,2.98829772,3155.1,3152.8,2.96457011]
[1768889860531,3.03122521,3153.8,3151.3,3.171]
[1768889860735,2.61970677,3155.0,3148.5,3.94492957]
[1768889860736,1.11578426,3153.4,3148.5,3.94492957]
[1768889860925,1.11578426,3152.0,3148.0,2.96457011]
[1768889861233,1.11578426,3152.0,3148.0,2.96727924]
[1768889861234,0.15886,3150.2,3148.0,2.96727924]
[1768889861620,5.00507862,3150.5,3148.0,0.00270913]
[1768889861820,0.77905855,3150.7,3144.6,2.96457011]
[1768889861821,0.15894,3148.7,3144.6,2.96457011]
[1768889862025,3.70397631,3148.6,3145.0,2.96457011]
[1768889862226,0.49697631,3148.5,3145.0,3.01988279]
[1768889862429,0.06575193,3148.3,3145.2,2.96457011]
[1768889862622,0.12577028,3148.1,3145.2,2.96457011]
[1768889862826,0.12577028,3148.1,3145.2,2.96809889]
[1768889862827,0.12577028,3147.9,3145.2,2.96809889]
[1768889863025,0.12577028,3147.7,3145.2,2.96809889]
[1768889863247,0.0022607,3148.1,3145.4,3.2003974]
[1768889863424,3.15843692,3147.4,3141.6,0.59540582]
[1768889863631,3.15843692,3147.4,3143.5,0.1592]
[1768889863830,3.15843692,3147.4,3144.7,40.8]
[1768889864037,3.10183641,3147.0,3144.7,40.8]
[1768889864237,1.83407862,3147.2,3143.4,4.036]
[1768889864421,3.10183641,3147.1,3143.5,2.007]
[1768889864635,3.15843692,3146.5,3143.5,4.21812598]
[1768889864834,3.15843692,3146.2,3143.4,0.00294072]
[1768889865037,0.15907,3146.1,3143.4,0.00294072]
[1768889865331,0.15907,3146.1,3143.5,3.2003974]
[1768889865529,3.15843692,3146.9,3143.5,3.2003974]
[1768889865724,3.15843692,3146.9,3143.6,3.2003974]
[1768889865930,3.15843692,3146.9,3143.7,3.2003974]
[1768889866126,2.99516018,3146.7,3143.7,3.2003974]
[1768889866327,2.99516018,3146.5,3143.7,3.2003974]
[1768889867127,0.15905,3146.5,3143.7,3.2003974]
[1768889867348,0.15905,3146.5,3143.9,3.2003974]
[1768889868233,3.23462396,3146.5,3143.9,3.2003974]
[1768889868436,3.23462396,3146.5,3143.9,3.1348574]
[1768889868641,0.15907,3146.1,3143.9,3.1348574]
[1768889869326,0.15907,3146.1,3144.0,40.8]
[1768889870333,3.15843692,3146.1,3144.0,40.8]
[1768889870532,3.15843692,3145.0,3143.4,0.00294072]
[1768889870852,7.83407862,3146.0,3136.3,3.2003974]
[1768889870853,0.01654871,3140.3,3136.3,3.2003974]
[1768889871137,0.15936,3140.3,3138.0,3.2003974]
[1768889871340,3.43263735,3141.2,3137.9,40.8]
[1768889871341,0.01654871,3139.6,3137.9,40.8]
[1768889871642,0.80706173,3139.5,3136.7,3.2003974]
[1768889871937,0.64766173,3139.5,3136.7,3.2003974]
[1768889872245,0.00377651,3139.5,3136.9,3.2003974]
[1768889872636,0.00377651,3139.5,3138.2,0.04122299]
[1768889873037,0.65666063,3139.5,3136.7,0.00338599]
[1768889873227,0.65666063,3139.5,3136.8,40.8]
[1768889873428,0.81606063,3139.5,3136.8,1.89634867]
[1768889873635,0.65666063,3139.5,3136.8,1.89634867]
[1768889873832,0.15942,3139.1,3136.8,1.89634867]
[1768889874138,0.15942,3139.1,3136.7,0.00338599]
[1768889874334,1.85172617,3139.5,3136.7,0.00338599]
[1768889874335,2.00735966,3139.3,3136.7,0.00338599]
[1768889874544,0.15941,3139.3,3136.7,0.00338599]
[1768889874848,0.09861,3139.3,3136.7,0.00338599]
[1768889875144,1.84794966,3138.7,3136.7,0.00338599]
[1768889875326,0.15948,3137.9,3136.7,0.00338599]
[1768889875529,1.83407862,3138.9,3136.7,0.00338599]
[1768889875530,1.99089187,3137.4,3136.7,5.99e-06]
[1768889875732,7.83407862,3138.9,3134.8,3.33157224]
[1768889875733,1.99089187,3138.0,3134.8,3.33157224]
[1768889875935,0.15945,3138.5,3135.5,3.33157224]
[1768889876134,1.99089187,3138.1,3135.3,3.181]
[1768889876340,3.181,3138.9,3134.9,4.11152465]
[1768889876341,1.99089187,3136.8,3134.9,4.11152465]
[1768889876532,1.99089187,3136.4,3133.1,3.33157224]
[1768889876730,1.99089187,3135.5,3133.1,0.00324573]
[1768889876933,1.99089187,3133.1,3129.5,3.33157224]
[1768889877242,0.15982,3131.2,3128.3,3.33157224]
[1768889877447,1.99089187,3132.4,3128.5,3.33157224]
[1768889877651,1.97146576,3133.1,3129.1,3.33157224]
[1768889877833,0.15973,3133.0,3129.5,1.83407862]
[1768889878031,0.00298097,3133.1,3130.3,3.33157224]
[1768889878551,0.00298097,3133.1,3130.8,3.33157224]
[1768889879044,0.15963,3135.1,3132.7,40.8]
[1768889879241,1.97146576,3135.3,3132.8,3.33157224]
[1768889879435,0.15964,3134.9,3132.7,40.8]
[1768889879642,0.15964,3134.9,3132.7,44.13157224]
[1768889879845,0.15964,3134.9,3132.8,3.33157224]
[1768889880045,0.16304277,3134.9,3132.8,3.33157224]
[1768889880243,0.16304277,3134.9,3133.8,0.0184603]
[1768889880544,0.00340277,3134.9,3133.8,0.0184603]
[1768889881145,1.7616465,3136.8,3134.3,0.0184603]
[1768889881348,1.9211865,3136.7,3134.3,0.0184603]
[1768889881547,1.7616465,3137.4,3134.3,3.35003254]
[1768889881842,0.15933,3140.9,3134.8,3.33157224]
[1768889881843,1.84607004,3138.7,3134.8,3.33157224]
[1768889882044,1.84607004,3138.7,3134.4,8.0097599]
[1768889882045,1.84607004,3138.0,3134.9,6.51857224]
[1768889882244,2.10217116,3138.0,3136.4,0.0184603]
[1768889882447,1.84904654,3138.7,3136.4,0.0184603]
[1768889882649,0.0029765,3138.7,3136.4,3.35003254]
[1768889882850,0.0029765,3138.7,3137.0,40.8]
[1768889883241,0.0029765,3138.7,3137.8,0.0184603]
[1768889883438,0.0029765,3138.7,3137.0,40.8]
[1768889884047,0.15936,3140.3,3137.1,3.33157224]
[1768889884248,1.88453872,3140.1,3137.1,4.0581782]
[1768889884551,1.88453872,3140.2,3137.1,3.33157224]
[1768889884847,0.15941,3139.4,3137.0,40.8]
[1768889885047,0.00259846,3139.4,3137.1,3.33157224]
[1768889885350,0.00259846,3139.4,3137.3,3.33157224]
[1768889886140,0.15941,3139.3,3137.0,40.80409256]
[1768889886345,0.15942,3139.2,3137.0,40.80409256]
[1768889886553,1.97750682,3138.7,3137.0,0.00409256]
[1768889886749,0.15942,3139.2,3135.9,3.33157224]
[1768889887140,0.15943,3138.9,3136.6,3.33157224]
[1768889887350,0.15945,3138.6,3136.6,3.33157224]
[1768889887744,0.15945,3138.5,3136.6,3.33548254]
[1768889887949,0.1595,3137.5,3136.6,3e-07]
[1768889888150,1.95418459,3138.3,3136.6,3e-07]
[1768889888454,0.00259846,3139.4,3136.7,4.16403357]
[1768889888654,1.95678305,3139.4,3136.8,3.33157224]
[1768889888861,0.15946,3138.3,3136.6,3e-07]
[1768889889056,1.95418459,3138.8,3136.6,3e-07]
[1768889889261,0.1595,3137.5,3136.6,3e-07]
[1768889889451,0.15951,3137.4,3136.6,3e-07]
[1768889890049,0.15946,3138.4,3136.6,3e-07]
[1768889890351,1.85867543,3138.6,3135.5,3.32277224]
[1768889890548,0.1595,3137.5,3135.5,3.32277224]
[1768889890749,1.85867543,3138.6,3134.5,0.15965]
[1768889890750,0.15952,3137.2,3134.8,6.52057224]
[1768889891054,0.15947,3138.2,3135.4,3.33157224]
[1768889891453,0.15942,3139.2,3136.0,3.33157224]
[1768889891651,0.15942,3139.2,3135.9,40.8]
[1768889891652,0.15942,3139.2,3136.4,3.33157224]
[1768889891968,0.15942,3139.2,3136.6,3.33157224]
[1768889892258,0.15946,3138.4,3136.6,3.33157224]
[1768889892854,1.85025369,3139.7,3136.6,3.33157224]
[1768889893061,0.15945,3138.6,3136.6,3.33157224]
[1768889893651,0.1594,3139.5,3136.8,3.33157224]
[1768889893848,0.1594,3139.4,3136.8,3.33157224]
[1768889894060,1.87220056,3139.5,3136.9,4.1937655]
[1768889894357,0.1594,3139.6,3137.0,3.33157224]
[1768889894653,0.1594,3139.5,3137.1,3.49109224]
[1768889894846,0.15937,3140.1,3137.3,3.49108224]
[1768889895071,5.06120056,3140.9,3137.7,3.33157224]
[1768889895253,0.15939,3139.8,3137.8,3.33157224]
[1768889895458,3.19211386,3140.9,3137.9,3.33157224]
[1768889895753,3.19211386,3140.9,3138.1,3.33157224]
[1768889895952,0.15941,3139.3,3138.0,4.11617952]
[1768889896153,0.15941,3139.3,3137.7,0.00262719]
[1768889896352,0.15942,3139.1,3137.7,0.00262719]
[1768889896754,1.9058157,3140.8,3137.7,3.33419943]
[1768889896959,1.9058157,3140.6,3137.9,3.33157224]
[1768889897258,0.15934,3140.6,3137.9,3.33157224]
[1768889897446,0.15934,3140.6,3138.1,3.33157224]
[1768889897856,0.15937,3140.2,3138.3,3.33157224]
[1768889898049,2.01664684,3140.9,3138.3,3.33157224]
[1768889898250,2.51186517,3140.8,3137.8,40.8]
[1768889898455,2.01353298,3139.8,3137.8,40.8]
[1768889898656,0.15943,3139.0,3137.8,40.8]
[1768889898967,0.14938,3139.9,3137.9,3.33157224]
[1768889899156,2.01353298,3140.4,3137.9,3.33157224]
[1768889899358,0.49837236,3140.3,3137.9,3.33157224]
[1768889899560,0.49837236,3140.2,3137.9,3.33157224]
[1768889899859,0.15942,3139.2,3137.9,3.33157224]
[1768889900355,0.15945,3138.5,3137.7,0.00262719]
[1768889900555,0.15946,3138.4,3137.7,0.00262719]
[1768889900763,1.0405913,3140.2,3137.7,0.00262719]
[1768889900764,0.15942,3139.2,3137.7,0.00262719]
[1768889900956,0.15942,3139.2,3137.8,40.8]
[1768889901160,0.15937,3140.0,3137.9,3.33157224]
[1768889901364,0.49837909,3139.9,3138.0,3.33157224]
[1768889901661,0.15937,3140.0,3138.2,3.33157224]
[1768889901856,0.15934,3140.8,3138.7,3.33157224]
[1768889902055,0.15937,3140.2,3138.7,3.33157224]
[1768889902554,2.07952456,3141.3,3138.0,3.33157224]
[1768889902749,0.15935,3140.6,3138.2,3.33157224]
[1768889902954,2.07728775,3140.9,3138.2,3.33157224]
[1768889903159,0.15938,3140.0,3138.2,3.33157224]
[1768889903966,0.15938,3139.9,3138.2,3.33157224]
[1768889904262,0.1594,3139.6,3137.8,40.8]
[1768889904465,2.07728775,3140.9,3137.9,3.72277898]
[1768889904665,2.07728775,3140.9,3138.2,3.56329898]
[1768889904863,0.15937,3140.2,3138.2,3.56329898]
[1768889905065,0.15933,3141.0,3138.5,3.56329898]
[1768889905362,0.15933,3141.0,3139.0,3.56329898]
[1768889905561,3.59408251,3139.4,3138.6,0.20539159]
[1768889905763,0.15945,3138.6,3136.7,1.168]
[1768889905970,0.00250605,3138.6,3136.7,1.168]
[1768889906157,0.00250605,3138.6,3136.8,40.8]
[1768889906371,0.00250605,3138.6,3137.7,4.03762719]
[1768889906559,0.00250605,3138.6,3137.7,7.22562719]
[1768889906954,0.15943,3139.0,3137.7,7.22562719]
[1768889907259,0.15943,3139.0,3137.8,7.222]
[1768889907571,0.15943,3139.0,3137.9,7.221]
[1768889907768,0.15943,3138.9,3137.7,0.00262719]
[1768889908065,4.08060134,3138.3,3135.1,3.188]
[1768889908269,0.15952,3137.1,3134.0,0.15968]
[1768889908567,0.15952,3137.1,3135.2,44.92551316]
[1768889908760,2.24652272,3138.2,3135.2,40.8]
[1768889908961,0.15956,3136.4,3135.2,40.80319699]
[1768889909170,0.00380713,3136.4,3135.2,0.00319699]
[1768889909864,2.25495607,3136.4,3135.2,6.99e-06]
[1768889910170,0.00380713,3136.4,3135.2,6.99e-06]
[1768889910556,0.1595,3137.6,3135.4,3.56329898]
[1768889910963,0.15951,3137.4,3135.4,3.56329898]
[1768889911161,0.15951,3137.3,3135.5,3.56329898]
[1768889911367,1.0405913,3138.3,3135.6,7.22]
[1768889911368,2.25495607,3138.2,3135.6,7.22]
[1768889911566,2.25495607,3138.0,3135.5,3.56329898]
[1768889911761,2.22183434,3137.2,3135.2,6.99e-06]
[1768889911962,0.15959,3135.8,3135.2,6.99e-06]
[1768889912271,0.00357117,3135.8,3135.2,6.99e-06]
[1768889912867,0.15952,3137.1,3135.2,6.99e-06]
[1768889913269,3.5117909,3137.0,3135.2,6.99e-06]
[1768889913569,0.15957,3136.3,3135.2,0.01000699]
[1768889913770,2.22540551,3136.8,3135.2,6.99e-06]
[1768889914072,0.15961,3135.3,3135.2,6.99e-06]
[1768889914268,1.6495,3135.8,3133.8,3.56329898]
[1768889914574,1.6495,3135.8,3133.9,47.55229898]
[1768889914867,0.15961,3135.4,3133.9,47.55680919]
[1768889915069,2.14221675,3135.7,3133.9,0.00351021]
[1768889915272,0.15968,3134.1,3133.9,2.1e-07]
[1768889915475,2.14221675,3135.0,3132.1,3.19]
[1768889915773,0.8545076,3134.9,3132.3,3.56329898]
[1768889916070,0.15958,3135.9,3132.7,3.56329898]
[1768889916275,0.15958,3135.9,3133.2,3.56329898]
[1768889916475,2.1290271,3136.9,3133.6,3.56329898]
[1768889916676,1.2001113,3137.2,3133.8,3.56329898]
[1768889916978,0.15953,3137.0,3134.2,3.72296898]
[1768889917373,0.15948,3137.9,3135.2,3.56329898]
[1768889917577,0.15945,3138.6,3135.5,3.72289898]
[1768889917765,0.16309759,3138.6,3135.7,3.56329898]
[1768889917962,0.15946,3138.3,3135.9,3.56329898]
[1768889918163,3.5977301,3138.6,3135.9,3.56329898]
[1768889918363,3.59408251,3138.0,3135.5,0.00231198]
[1768889918568,3.59408251,3138.0,3135.5,3.56561096]
[1768889918771,3.59408251,3138.0,3135.6,7.218]
[1768889919470,0.1595,3137.6,3135.6,7.218]
[1768889919775,0.1595,3137.6,3135.7,7.70602129]
[1768889919973,0.1595,3137.6,3135.7,3.56329898]
[1768889920275,0.1595,3137.6,3135.8,3.19]
[1768889920475,3.59408251,3138.0,3135.5,0.00231198]
[1768889920675,0.15947,3138.2,3135.5,3.56561096]
[1768889920877,0.15947,3138.2,3135.7,3.56329898]
[1768889921174,3.59408251,3138.5,3135.8,43.99]
[1768889921175,0.15949,3137.8,3135.8,43.99]
[1768889921767,3.59408251,3138.5,3135.8,40.8]
[1768889921968,0.1595,3137.6,3135.8,40.8]
[1768889922174,3.75353251,3138.5,3135.8,40.8]